[Event "Turkish Club Cup 2019"]
[Site "Konya"]
[Date "2019.07.18"]
[Round "5"]
[White "Akin, Batikan Aybey"]
[Black "Basaran, Alp"]
[Result "1/2-1/2"]
[ECO "B07"]
[WhiteElo "1610"]
[BlackElo "1857"]
[Annotator "NA"]
[PlyCount "176"]
[EventDate "2019.07.16"]
[EventType "team-tourn"]
[EventCountry "TUR"]
[SourceTitle "playchess.com"]
[Source "ChessBase"]
[SourceQuality "1"]
[TimeControl "5400+30"]

1. Nf3 {[%emt 0:00:30]} Nf6 {[%emt 0:00:30]} 2. d4 {[%emt 0:00:30]} g6 {[%emt 0:00:30]} 3. Nbd2 {[%emt 0:00:00]} Bg7 {[%emt 0:00:00]} 4. e4 {[%emt 0:01:00]} d6 {[%emt 0:00:00]} 5. Bd3 {[%emt 0:00:30]} Nbd7 {[%emt 0:01:30]} 6. O-O {[%emt 0:03:30]} O-O {[%emt 0:00:30]} 7. c3 {[%emt 0:01:30]} c6 {[%emt 0:03:30]} 8. a4 {[%emt 0:03:30]} e5 {[%emt 0:02:30]} 9. Re1 {[%emt 0:07:30]} Qc7 {[%emt 0:00:30]} 10. Qc2 {[%emt 0:07:30]} Re8 {[%emt 0:02:30]} 11. b3 {[%emt 0:04:30]} Nf8 {[%emt 0:05:30]} 12. Ba3 {[%emt 0:05:30]} Bg4 {[%emt 0:00:30]} 13. Bxd6 {[%emt 0:07:30]} Qxd6 {[%emt 0:00:30]} 14. dxe5 {[%emt 0:00:30]} Qc7 {[%emt 0:01:30]} 15. exf6 {[%emt 0:00:30]} Bxf6 {[%emt 0:00:00]} 16. h3 {[%emt 0:01:30]} Bxf3 {[%emt 0:01:00]} 17. Nxf3 {[%emt 0:00:30]} Rad8 {[%emt 0:00:00]} 18. Rad1 {[%emt 0:05:30]} Ne6 {[%emt 0:01:00]} 19. e5 {[%emt 0:09:30]} Bg7 {[%emt 0:00:30]} 20. Bc4 {[%emt 0:00:00]} a6 {[%emt 0:03:30]} 21. b4 {[%emt 0:02:00]} b5 {[%emt 0:03:30]} 22. Bxe6 {[%emt 0:03:30]} Rxe6 {[%emt 0:00:30]} 23. Rxd8+ {[%emt 0:00:30]} Qxd8 {[%emt 0:00:00]} 24. Nd4 {[%emt 0:00:30]} Rxe5 {[%emt 0:01:00]} 25. Rxe5 {[%emt 0:00:30]} Bxe5 {[%emt 0:00:30]} 26. Nxc6 {[%emt 0:00:00]} Qd6 {[%emt 0:00:00]} 27. Nxe5 {[%emt 0:02:00]} Qxe5 {[%emt 0:00:00]} 28. axb5 {[%emt 0:00:30]} axb5 {[%emt 0:00:00]} 29. Qd2 {[%emt 0:00:30]} h5 {[%emt 0:00:00]} 30. Qd8+ {[%emt 0:04:30]} Kh7 {[%emt 0:01:30]} 31. Qd4 {[%emt 0:00:30]} Qe2 {[%emt 0:01:30]} 32. Qe3 {[%emt 0:02:30]} Qd1+ {[%emt 0:02:30]} 33. Kh2 {[%emt 0:00:00]} Qf1 {[%emt 0:00:30]} 34. Kg3 {[%emt 0:04:00]} Qc4 {[%emt 0:01:30]} 35. f4 {[%emt 0:04:30]} Qf1 {[%emt 0:02:30]} 36. Kh2 {[%emt 0:02:48]} Kg8 {[%emt 0:00:30]} 37. Qf3 {[%emt 0:01:48]} Qc1 {[%emt 0:03:30]} 38. Qe4 {[%emt 0:04:20]} Qf1 {[%emt 0:01:30]} 39. f5 {[%emt 0:02:50]} gxf5 {[%emt 0:00:30]} 40. Qf3 {[%emt 0:00:04]} Qc4 {[%emt 0:02:30]} 41. Qxf5 {[%emt 0:07:08]} Qc7+ {[%emt 0:00:30]} 42. Kg1 {[%emt 0:00:09]} Qxc3 {[%emt 0:00:30]} 43. Qxb5 {[%emt 0:01:04]} Qe3+ {[%emt 0:00:30]} 44. Kf1 {[%emt 0:00:55]} Qf4+ {[%emt 0:01:30]} 45. Ke2 {[%emt 0:01:34]} Qe4+ {[%emt 0:00:30]} 46. Kd1 {[%emt 0:01:36]} Qxg2 {[%emt 0:04:30]} 47. Qxh5 {[%emt 0:00:33]} Qf1+ {[%emt 0:00:30]} 48. Kd2 {[%emt 0:00:33]} Qf2+ {[%emt 0:01:30]} 49. Kc3 {[%emt 0:00:11]} Qe1+ {[%emt 0:01:30]} 50. Kc4 {[%emt 0:00:23]} Qe4+ {[%emt 0:00:00]} 51. Kb5 {[%emt 0:00:43]} Qd3+ {[%emt 0:00:00]} 52. Ka5 {[%emt 0:01:31]} Qa3+ {[%emt 0:00:30]} 53. Kb5 {[%emt 0:00:30]} Qd3+ {[%emt 0:00:00]} 54. Kb6 {[%emt 0:00:15]} Qd6+ {[%emt 0:02:00]} 55. Ka5 {[%emt 0:00:08]} Qc7+ {[%emt 0:00:30]} 56. Kb5 {[%emt 0:00:47]} Qb7+ {[%emt 0:00:30]} 57. Ka4 {[%emt 0:00:35]} Qa6+ {[%emt 0:01:30]} 58. Qa5 {[%emt 0:00:14]} Qc6+ {[%emt 0:00:30]} 59. b5 {[%emt 0:00:36]} Qc2+ {[%emt 0:00:30]} 60. Ka3 {[%emt 0:00:26]} Qc1+ {[%emt 0:01:30]} 61. Kb3 {[%emt 0:00:20]} Qd1+ {[%emt 0:00:30]} 62. Kc4 {[%emt 0:00:58]} Qe2+ {[%emt 0:00:30]} 63. Kc5 {[%emt 0:00:25]} Qe3+ {[%emt 0:00:00]} 64. Kc6 {[%emt 0:00:15]} Qe6+ {[%emt 0:00:00]} 65. Kc7 {[%emt 0:00:46]} Qe7+ {[%emt 0:01:30]} 66. Kc8 {[%emt 0:00:26]} Qe6+ {[%emt 0:00:00]} 67. Kb8 {[%emt 0:00:32]} Qe8+ {[%emt 0:00:00]} 68. Ka7 {[%emt 0:00:59]} Qd7+ {[%emt 0:00:30]} 69. Ka6 {[%emt 0:00:00]} Qc8+ {[%emt 0:01:30]} 70. Kb6 {[%emt 0:00:29]} Qd8+ {[%emt 0:00:00]} 71. Ka6 {[%emt 0:00:24]} Qc8+ {[%emt 0:00:00]} 72. Ka7 {[%emt 0:00:00]} Qd7+ {[%emt 0:00:30]} 73. Kb8 {[%emt 0:00:05]} Qe8+ {[%emt 0:00:30]} 74. Kc7 {[%emt 0:00:10]} Qe7+ {[%emt 0:00:30]} 75. Kc6 {[%emt 0:00:30]} Qe6+ {[%emt 0:00:00]} 76. Kc5 {[%emt 0:01:07]} Qe3+ {[%emt 0:00:00]} 77. Kc4 {[%emt 0:01:37]} Qe2+ {[%emt 0:00:30]} 78. Kd4 {[%emt 0:00:03]} Qf2+ {[%emt 0:00:30]} 79. Ke4 {[%emt 0:01:04]} Qe2+ {[%emt 0:00:30]} 80. Kd4 {[%emt 0:00:00]} Qf2+ {[%emt 0:00:30]} 81. Kd3 {[%emt 0:00:17]} Qf3+ {[%emt 0:00:00]} 82. Kd2 {[%emt 0:00:19]} Qf2+ {[%emt 0:00:00]} 83. Kd1 {[%emt 0:00:29]} Qf1+ {[%emt 0:00:30]} 84. Kc2 {[%emt 0:00:05]} Qc4+ {[%emt 0:00:30]} 85. Qc3 {[%emt 0:01:25]} Qxb5 {[%emt 0:00:30]} 86. Qg3+ {[%emt 0:00:25]} Kh7 {[%emt 0:00:30]} 87. Qh4+ {[%emt 0:00:34]} Kg6 {[%emt 0:00:30]} 88. Qg4+ {[%emt 0:00:27]} Kf6 {[%emt 0:01:30]} 1/2-1/2

[Event "Turkish Club Cup 2019"]
[Site "Konya"]
[Date "2019.07.18"]
[Round "5"]
[White "Inci, Okan"]
[Black "Vursan, Emre Can"]
[Result "1-0"]
[ECO "A55"]
[WhiteElo "1609"]
[BlackElo "1714"]
[Annotator "NA RC"]
[PlyCount "137"]
[EventDate "2019.07.16"]
[EventType "team-tourn"]
[EventCountry "TUR"]
[SourceTitle "playchess.com"]
[Source "ChessBase"]
[SourceQuality "1"]
[TimeControl "5400+30"]

1. Nf3 {[%emt 0:00:30]} Nf6 {[%emt 0:00:30]} 2. c4 {[%emt 0:00:30]} d6 {[%emt 0:00:30]} 3. d4 {[%emt 0:01:30]} Nbd7 {[%emt 0:00:30]} 4. Nc3 {[%emt 0:01:30]} e5 {[%emt 0:00:30]} 5. e4 {[%emt 0:00:30]} Be7 {[%emt 0:06:30]} 6. Be2 {[%emt 0:05:30]} O-O {[%emt 0:00:30]} 7. O-O {[%emt 0:01:30]} exd4 {[%emt 0:00:00]} 8. Nxd4 {[%emt 0:00:30]} Nc5 {[%emt 0:00:00]} 9. f3 {[%emt 0:01:30]} a5 {[%emt 0:02:30]} 10. b3 {[%emt 0:00:30]} Ne8 {[%emt 0:04:30]} 11. Be3 {[%emt 0:07:30]} g6 {[%emt 0:05:30]} 12. Qd2 {[%emt 0:17:30]} c6 {[%emt 0:05:30]} 13. Rfd1 {[%emt 0:08:30]} Ng7 {[%emt 0:07:30]} 14. Qe1 {[%emt 0:06:30]} Qc7 {[%emt 0:02:30]} 15. Rac1 {[%emt 0:10:30]} f5 {[%emt 0:03:30]} 16. exf5 {[%emt 0:04:30]} Nxf5 {[%emt 0:00:30]} 17. Nxf5 {[%emt 0:00:30]} Bxf5 {[%emt 0:00:30]} 18. Qg3 {[%emt 0:01:30]} Rac8 {[%emt 0:07:30]} 19. Rd2 {[%emt 0:06:30]} Rfe8 {[%emt 0:05:30]} 20. Bf4 {[%emt 0:03:10]} Ne6 {[%emt 0:06:30]} 21. Bxd6 {[%emt 0:07:57]} Bxd6 {[%emt 0:00:00]} 22. Qxd6 {[%emt 0:01:20]} Qb6+ {[%emt 0:00:00]} 23. c5 {[%emt 0:00:32]} Qxc5+ {[%emt 0:10:30]} 24. Qxc5 {[%emt 0:00:30]} Nxc5 {[%emt 0:00:00]} 25. Bc4+ {[%emt 0:00:46]} Be6 {[%emt 0:00:00]} 26. Bxe6+ {[%emt 0:03:20]} Rxe6 {[%emt 0:00:00]} 27. Rcd1 {[%emt 0:01:07]} Re3 {[%emt 0:00:00]} 28. Ne2 {[%emt 0:00:57]} Rce8 {[%emt 0:00:30]} 29. Nf4 {[%emt 0:00:28]} g5 {[%emt 0:01:30]} 30. Nh5 {[%emt 0:00:27]} Kf7 {[%emt 0:00:30]} 31. Kf2 {[%emt 0:00:57]} g4 {[%emt 0:01:30]} 32. fxg4 {[%emt 0:02:07]} R3e4 {[%emt 0:02:30]} 33. h3 {[%emt 0:00:37]} a4 {[%emt 0:00:30]} 34. bxa4 {[%emt 0:00:34]} Rxa4 {[%emt 0:00:30]} 35. Rc2 {[%emt 0:01:17]} b6 {[%emt 0:01:30]} 36. Kg1 {[%emt 0:00:20]} Rea8 {[%emt 0:00:30]} 37. Rd6 {[%emt 0:00:27]} Rxa2 {[%emt 0:00:30]} 38. Rxa2 {[%emt 0:00:30]} Rxa2 {[%emt 0:00:30]} 39. Rxc6 {[%emt 0:00:00]} Nd7 {[%emt 0:01:30]} 40. Rc7 {[%emt 0:00:43]} Ke6 {[%emt 0:00:30]} 41. Nf4+ {[%emt 0:00:29]} Kd6 {[%emt 0:00:00]} 42. Rc3 {[%emt 0:00:52]} Nc5 {[%emt 0:00:00]} 43. Nd3 {[%emt 0:00:59]} Ra1+ {[%emt 0:01:30]} 44. Kh2 {[%emt 0:00:37]} Kd5 {[%emt 0:00:30]} 45. Nxc5 {[%emt 0:00:39]} bxc5 {[%emt 0:00:30]} 46. Rd3+ {[%emt 0:00:30]} Kc6 {[%emt 0:00:30]} 47. Rd8 {[%emt 0:00:53]} Ra7 {[%emt 0:00:00]} 48. Rc8+ {[%emt 0:00:30]} Kd5 {[%emt 0:00:00]} 49. Kg3 {[%emt 0:00:31]} Rf7 {[%emt 0:00:30]} 50. g5 {[%emt 0:00:19]} c4 {[%emt 0:00:00]} 51. h4 {[%emt 0:00:31]} Kd4 {[%emt 0:00:00]} 52. Kg4 {[%emt 0:00:00]} c3 {[%emt 0:01:30]} 53. h5 {[%emt 0:00:29]} Rg7 {[%emt 0:00:00]} 54. g6 {[%emt 0:00:50]} hxg6 {[%emt 0:07:00]} 55. h6 {[%emt 0:00:00]} Re7 {[%emt 0:02:39]} 56. Kg5 {[%emt 0:00:30]} Re2 {[%emt 0:00:00]} 57. g4 {[%emt 0:00:00]} Re5+ {[%emt 0:13:19]} 58. Kxg6 {[%emt 0:00:28]} Re6+ {[%emt 0:00:00]} 59. Kg7 {[%emt 0:00:00]} Re4 {[%emt 0:01:24]} 60. g5 {[%emt 0:00:19]} Re5 {[%emt 0:00:00]} 61. g6 {[%emt 0:00:32]} Re7+ {[%emt 0:03:35]} 62. Kf8 {[%emt 0:00:08]} Ra7 {[%emt 0:03:32]} 63. h7 {[%emt 0:00:24]} Kd3 {[%emt 0:00:30]} 64. h8=Q {[%emt 0:00:19]} c2 {[%emt 0:00:27]} 65. Qh3+ {[%emt 0:00:12]} Kd4 {[%emt 0:00:32]} 66. Qh4+ {[%emt 0:00:22]} Ke3 {[%emt 0:00:16]} 67. Qe1+ {[%emt 0:00:18]} Kd3 {[%emt 0:00:11]} 68. Rd8+ {[%emt 0:00:10]} Kc4 {[%emt 0:00:10]} 69. Qe2+ {[%emt 0:00:14]} 1-0

[Event "Turkish Club Cup 2019"]
[Site "Konya"]
[Date "2019.07.18"]
[Round "5"]
[White "Yigit, Fatih"]
[Black "Acar, Eren"]
[Result "0-1"]
[ECO "D37"]
[WhiteElo "1594"]
[BlackElo "1539"]
[Annotator "NA"]
[PlyCount "98"]
[EventDate "2019.07.16"]
[EventType "team-tourn"]
[EventCountry "TUR"]
[SourceTitle "playchess.com"]
[Source "ChessBase"]
[SourceQuality "1"]
[TimeControl "5400+30"]

1. d4 {[%emt 0:00:30]} d5 {[%emt 0:00:30]} 2. c4 {[%emt 0:00:30]} e6 {[%emt 0:00:00]} 3. Nc3 {[%emt 0:00:00]} Nf6 {[%emt 0:00:00]} 4. e3 {[%emt 0:00:00]} Be7 {[%emt 0:00:30]} 5. Nf3 {[%emt 0:00:00]} O-O {[%emt 0:00:00]} 6. Be2 {[%emt 0:00:00]} dxc4 {[%emt 0:00:00]} 7. O-O {[%emt 0:02:30]} c5 {[%emt 0:01:30]} 8. Bxc4 {[%emt 0:02:30]} cxd4 {[%emt 0:00:30]} 9. Nxd4 {[%emt 0:04:30]} a6 {[%emt 0:01:30]} 10. b3 {[%emt 0:04:30]} b5 {[%emt 0:01:30]} 11. Be2 {[%emt 0:00:30]} Bb7 {[%emt 0:00:30]} 12. Bf3 {[%emt 0:00:00]} Nd5 {[%emt 0:01:30]} 13. Bb2 {[%emt 0:06:00]} Bf6 {[%emt 0:04:30]} 14. Qe2 {[%emt 0:07:30]} Bxd4 {[%emt 0:02:30]} 15. exd4 {[%emt 0:00:30]} Qg5 {[%emt 0:00:30]} 16. Ne4 {[%emt 0:06:30]} Qg6 {[%emt 0:01:30]} 17. Bc1 {[%emt 0:09:30]} Nd7 {[%emt 0:12:30]} 18. Re1 {[%emt 0:18:30]} N7f6 {[%emt 0:05:30]} 19. Nc5 {[%emt 0:05:30]} Nc3 {[%emt 0:06:30]} 20. Qe3 {[%emt 0:02:30]} Bxf3 {[%emt 0:01:30]} 21. Qxf3 {[%emt 0:00:30]} Ncd5 {[%emt 0:00:30]} 22. Bd2 {[%emt 0:01:30]} Rfd8 {[%emt 0:03:30]} 23. Ba5 {[%emt 0:01:30]} Re8 {[%emt 0:03:30]} 24. a4 {[%emt 0:04:30]} h6 {[%emt 0:06:30]} 25. Nd3 {[%emt 0:04:19]} Rab8 {[%emt 0:03:30]} 26. Ne5 {[%emt 0:01:31]} Qg5 {[%emt 0:02:30]} 27. g3 {[%emt 0:06:52]} Rec8 {[%emt 0:03:30]} 28. h4 {[%emt 0:00:36]} Qh5 {[%emt 0:01:30]} 29. Qd3 {[%emt 0:01:17]} Qf5 {[%emt 0:04:30]} 30. Qxf5 {[%emt 0:01:50]} exf5 {[%emt 0:00:00]} 31. Rac1 {[%emt 0:00:36]} Rxc1 {[%emt 0:03:00]} 32. Rxc1 {[%emt 0:00:44]} f4 {[%emt 0:00:30]} 33. Rc6 {[%emt 0:00:55]} fxg3 {[%emt 0:02:30]} 34. fxg3 {[%emt 0:00:22]} bxa4 {[%emt 0:01:30]} 35. bxa4 {[%emt 0:00:22]} Ra8 {[%emt 0:00:30]} 36. Nd3 {[%emt 0:00:53]} Ne4 {[%emt 0:03:30]} 37. Kg2 {[%emt 0:00:43]} Ne7 {[%emt 0:00:30]} 38. Rb6 {[%emt 0:03:54]} Nd5 {[%emt 0:01:30]} 39. Rb7 {[%emt 0:00:49]} Rc8 {[%emt 0:01:30]} 40. Kf3 {[%emt 0:00:40]} Nec3 {[%emt 0:01:30]} 41. Nc5 {[%emt 0:00:37]} Rc6 {[%emt 0:00:30]} 42. Rb3 {[%emt 0:01:10]} Rf6+ {[%emt 0:00:30]} 43. Kg2 {[%emt 0:00:29]} Ne2 {[%emt 0:01:30]} 44. Rb8+ {[%emt 0:01:17]} Kh7 {[%emt 0:00:00]} 45. Ra8 {[%emt 0:01:24]} Ne3+ {[%emt 0:00:00]} 46. Kh3 {[%emt 0:00:29]} Rf1 {[%emt 0:00:30]} 47. Kh2 {[%emt 0:00:23]} Rf2+ {[%emt 0:00:30]} 48. Kh1 {[%emt 0:00:34]} Nxg3+ {[%emt 0:00:30]} 49. Kg1 {[%emt 0:00:06]} Rg2# {[%emt 0:00:30]} 0-1

[Event "Turkish Club Cup 2019"]
[Site "Konya"]
[Date "2019.07.18"]
[Round "5"]
[White "Unsal, Omer"]
[Black "Mutlu, Bunyamin"]
[Result "1-0"]
[ECO "E66"]
[WhiteElo "1586"]
[BlackElo "1511"]
[Annotator "NA RC"]
[PlyCount "119"]
[EventDate "2019.07.16"]
[EventType "team-tourn"]
[EventCountry "TUR"]
[SourceTitle "playchess.com"]
[Source "ChessBase"]
[SourceQuality "1"]
[TimeControl "5400+30"]

1. c4 {[%emt 0:00:30]} Nf6 {[%emt 0:00:30]} 2. g3 {[%emt 0:00:00]} g6 {[%emt 0:00:30]} 3. Bg2 {[%emt 0:00:00]} Bg7 {[%emt 0:00:00]} 4. Nc3 {[%emt 0:00:00]} O-O {[%emt 0:00:00]} 5. Nf3 {[%emt 0:01:00]} d6 {[%emt 0:01:30]} 6. O-O {[%emt 0:03:30]} c5 {[%emt 0:10:30]} 7. d4 {[%emt 0:02:30]} Nc6 {[%emt 0:17:30]} 8. d5 {[%emt 0:02:30]} Nb8 {[%emt 0:00:00]} 9. Re1 {[%emt 0:08:30]} Na6 {[%emt 0:09:00]} 10. h3 {[%emt 0:03:30]} Nc7 {[%emt 0:01:30]} 11. e4 {[%emt 0:01:30]} Nd7 {[%emt 0:02:30]} 12. Bf4 {[%emt 0:02:30]} f6 {[%emt 0:04:30]} 13. Qd2 {[%emt 0:04:30]} Rf7 {[%emt 0:09:30]} 14. Bf1 {[%emt 0:16:30]} Qf8 {[%emt 0:07:30]} 15. Nh2 {[%emt 0:10:30]} h6 {[%emt 0:18:49]} 16. Be3 {[%emt 0:01:30]} g5 {[%emt 0:02:46]} 17. Be2 {[%emt 0:00:30]} f5 {[%emt 0:01:22]} 18. exf5 {[%emt 0:12:30]} Rxf5 {[%emt 0:00:34]} 19. Bd3 {[%emt 0:00:30]} Ne5 {[%emt 0:01:08]} 20. Be2 {[%emt 0:11:23]} Ne8 {[%emt 0:03:23]} 21. Rf1 {[%emt 0:00:54]} Rf7 {[%emt 0:04:49]} 22. Kg2 {[%emt 0:00:16]} Bf5 {[%emt 0:00:53]} 23. f4 {[%emt 0:01:34]} gxf4 {[%emt 0:00:20]} 24. Rxf4 {[%emt 0:01:05]} Bh7 {[%emt 0:01:34]} 25. Raf1 {[%emt 0:00:20]} Nf6 {[%emt 0:00:59]} 26. Ng4 {[%emt 0:09:17]} Nfxg4 {[%emt 0:00:34]} 27. Bxg4 {[%emt 0:00:50]} Nxc4 {[%emt 0:00:37]} 28. Rxf7 {[%emt 0:01:31]} Nxd2 {[%emt 0:00:34]} 29. Rxf8+ {[%emt 0:00:11]} Rxf8 {[%emt 0:00:19]} 30. Be6+ {[%emt 0:00:12]} Kh8 {[%emt 0:00:33]} 31. Rxf8+ {[%emt 0:00:30]} Bxf8 {[%emt 0:00:00]} 32. Bxd2 {[%emt 0:00:00]} Bg7 {[%emt 0:00:19]} 33. Kf3 {[%emt 0:00:51]} Be5 {[%emt 0:00:54]} 34. Bxh6 {[%emt 0:00:19]} a6 {[%emt 0:00:56]} 35. Bg5 {[%emt 0:00:15]} b5 {[%emt 0:00:18]} 36. Bf4 {[%emt 0:00:51]} Bf6 {[%emt 0:00:29]} 37. Bc1 {[%emt 0:00:37]} b4 {[%emt 0:00:33]} 38. Ne4 {[%emt 0:00:09]} Bd4 {[%emt 0:00:23]} 39. b3 {[%emt 0:00:36]} Kg7 {[%emt 0:00:25]} 40. g4 {[%emt 0:00:14]} a5 {[%emt 0:00:33]} 41. h4 {[%emt 0:00:21]} c4 {[%emt 0:00:30]} 42. h5 {[%emt 0:01:14]} a4 {[%emt 0:00:35]} 43. bxa4 {[%emt 0:04:00]} b3 {[%emt 0:00:39]} 44. axb3 {[%emt 0:00:06]} cxb3 {[%emt 0:00:00]} 45. g5 {[%emt 0:00:13]} b2 {[%emt 0:00:56]} 46. Bxb2 {[%emt 0:00:06]} Bxb2 {[%emt 0:00:08]} 47. g6 {[%emt 0:00:06]} Bxg6 {[%emt 0:00:00]} 48. hxg6 {[%emt 0:00:25]} Kxg6 {[%emt 0:00:00]} 49. Nd2 {[%emt 0:00:30]} Bd4 {[%emt 0:00:08]} 50. Ke4 {[%emt 0:00:30]} Ba7 {[%emt 0:00:30]} 51. Nc4 {[%emt 0:00:30]} Kg7 {[%emt 0:00:30]} 52. a5 {[%emt 0:00:30]} Kf8 {[%emt 0:00:30]} 53. Nb6 {[%emt 0:00:30]} Ke8 {[%emt 0:00:30]} 54. Nc8 {[%emt 0:00:30]} Bc5 {[%emt 0:00:30]} 55. a6 {[%emt 0:00:30]} Kd8 {[%emt 0:00:30]} 56. a7 {[%emt 0:00:30]} Bxa7 {[%emt 0:00:30]} 57. Nxa7 {[%emt 0:00:30]} Kc7 {[%emt 0:00:30]} 58. Nc6 {[%emt 0:00:30]} Kb6 {[%emt 0:00:30]} 59. Nxe7 {[%emt 0:00:30]} Kc7 {[%emt 0:00:30]} 60. Nf5 {[%emt 0:00:30]} 1-0

[Event "Turkish Club Cup 2019"]
[Site "Konya"]
[Date "2019.07.18"]
[Round "5"]
[White "Metin, Enis"]
[Black "Aydin, Ismail"]
[Result "1-0"]
[ECO "C00"]
[WhiteElo "1538"]
[BlackElo "1896"]
[Annotator "NA"]
[PlyCount "138"]
[EventDate "2019.07.16"]
[EventType "team-tourn"]
[EventCountry "TUR"]
[SourceTitle "playchess.com"]
[Source "ChessBase"]
[SourceQuality "1"]
[TimeControl "5400+30"]

1. e4 {[%emt 0:00:30]} e6 {[%emt 0:00:30]} 2. Nf3 {[%emt 0:00:30]} d5 {[%emt 0:00:00]} 3. e5 {[%emt 0:00:00]} c5 {[%emt 0:01:00]} 4. b4 {[%emt 0:00:00]} c4 {[%emt 0:01:30]} 5. a3 {[%emt 0:00:00]} b5 {[%emt 0:01:30]} 6. Nc3 {[%emt 0:05:00]} Bd7 {[%emt 0:02:30]} 7. Nd4 {[%emt 0:01:30]} Qb6 {[%emt 0:02:30]} 8. Nf3 {[%emt 0:00:30]} a5 {[%emt 0:00:30]} 9. bxa5 {[%emt 0:00:30]} Rxa5 {[%emt 0:00:30]} 10. d3 {[%emt 0:01:30]} Bb4 {[%emt 0:04:30]} 11. Bb2 {[%emt 0:00:30]} Bc5 {[%emt 0:00:30]} 12. d4 {[%emt 0:00:30]} Be7 {[%emt 0:00:30]} 13. Ne2 {[%emt 0:02:30]} Qa7 {[%emt 0:01:30]} 14. Qc1 {[%emt 0:00:30]} Nc6 {[%emt 0:01:30]} 15. Nf4 {[%emt 0:02:30]} Nh6 {[%emt 0:03:30]} 16. Nh5 {[%emt 0:06:30]} O-O {[%emt 0:05:30]} 17. h4 {[%emt 0:00:30]} Nf5 {[%emt 0:18:30]} 18. Qf4 {[%emt 0:02:30]} Bxa3 {[%emt 0:08:30]} 19. Rxa3 {[%emt 0:00:30]} Rxa3 {[%emt 0:00:30]} 20. g4 {[%emt 0:00:00]} Rxf3 {[%emt 0:10:30]} 21. Qxf3 {[%emt 0:00:00]} Qa2 {[%emt 0:02:30]} 22. gxf5 {[%emt 0:09:30]} Qxb2 {[%emt 0:07:30]} 23. Rg1 {[%emt 0:06:30]} Qa1+ {[%emt 0:03:30]} 24. Qd1 {[%emt 0:05:30]} Qxd1+ {[%emt 0:00:30]} 25. Kxd1 {[%emt 0:00:00]} Kh8 {[%emt 0:00:30]} 26. c3 {[%emt 0:03:00]} g6 {[%emt 0:03:45]} 27. Nf6 {[%emt 0:00:30]} Bc8 {[%emt 0:00:30]} 28. fxg6 {[%emt 0:00:00]} fxg6 {[%emt 0:01:14]} 29. h5 {[%emt 0:01:00]} Ne7 {[%emt 0:00:29]} 30. hxg6 {[%emt 0:00:30]} Nxg6 {[%emt 0:00:22]} 31. Be2 {[%emt 0:01:30]} Rf7 {[%emt 0:01:56]} 32. Bh5 {[%emt 0:01:30]} Rg7 {[%emt 0:00:19]} 33. Ne8 {[%emt 0:02:30]} Ra7 {[%emt 0:00:07]} 34. Rg3 {[%emt 0:01:30]} Kg8 {[%emt 0:10:18]} 35. Nf6+ {[%emt 0:00:30]} Kg7 {[%emt 0:00:36]} 36. Bxg6 {[%emt 0:05:30]} hxg6 {[%emt 0:00:02]} 37. Rh3 {[%emt 0:00:30]} Ra1+ {[%emt 0:00:30]} 38. Ke2 {[%emt 0:00:30]} g5 {[%emt 0:00:00]} 39. Rh7+ {[%emt 0:00:30]} Kg6 {[%emt 0:00:00]} 40. Rh8 {[%emt 0:00:30]} Ba6 {[%emt 0:00:00]} 41. Rg8+ {[%emt 0:03:30]} Kf7 {[%emt 0:01:08]} 42. Rb8 {[%emt 0:07:30]} Ra2+ {[%emt 0:01:27]} 43. Ke1 {[%emt 0:00:30]} Kg6 {[%emt 0:00:28]} 44. Nd7 {[%emt 0:00:30]} Rb2 {[%emt 0:04:04]} 45. Nc5 {[%emt 0:00:30]} b4 {[%emt 0:00:07]} 46. Rxb4 {[%emt 0:01:30]} Ra2 {[%emt 0:00:20]} 47. Rb6 {[%emt 0:01:30]} Bc8 {[%emt 0:00:49]} 48. Rb8 {[%emt 0:00:00]} Rc2 {[%emt 0:00:31]} 49. Rxc8 {[%emt 0:00:00]} Rxc3 {[%emt 0:00:30]} 50. Nxe6 {[%emt 0:00:30]} Rd3 {[%emt 0:00:00]} 51. Ke2 {[%emt 0:02:30]} Kf5 {[%emt 0:00:00]} 52. Rc6 {[%emt 0:00:00]} Ra3 {[%emt 0:00:00]} 53. Nc5 {[%emt 0:01:00]} Ra2+ {[%emt 0:00:00]} 54. Kf3 {[%emt 0:00:30]} Ra3+ {[%emt 0:00:26]} 55. Kg2 {[%emt 0:00:30]} c3 {[%emt 0:00:00]} 56. Rf6+ {[%emt 0:04:30]} Kg4 {[%emt 0:00:00]} 57. f3+ {[%emt 0:00:30]} Kh5 {[%emt 0:00:25]} 58. Ne6 {[%emt 0:00:30]} g4 {[%emt 0:01:32]} 59. Ng7+ {[%emt 0:00:30]} Kh4 {[%emt 0:00:00]} 60. Rh6+ {[%emt 0:00:30]} Kg5 {[%emt 0:00:00]} 61. Rh1 {[%emt 0:00:30]} Kf4 {[%emt 0:01:52]} 62. fxg4 {[%emt 0:00:30]} Ra2+ {[%emt 0:01:50]} 63. Kh3 {[%emt 0:00:30]} Rd2 {[%emt 0:00:00]} 64. Rc1 {[%emt 0:01:30]} c2 {[%emt 0:00:00]} 65. e6 {[%emt 0:00:00]} Rd3+ {[%emt 0:01:17]} 66. Kh4 {[%emt 0:00:00]} Rd1 {[%emt 0:00:00]} 67. Nh5+ {[%emt 0:00:30]} Ke4 {[%emt 0:00:23]} 68. Rxc2 {[%emt 0:00:30]} Kxd4 {[%emt 0:00:30]} 69. Re2 {[%emt 0:00:00]} Kc5 {[%emt 0:00:50]} 1-0

[Event "Turkish Club Cup 2019"]
[Site "Konya"]
[Date "2019.07.18"]
[Round "5"]
[White "Yalcinkaya, Ilhan Safak"]
[Black "Oz, Ozan"]
[Result "0-1"]
[ECO "A06"]
[WhiteElo "1537"]
[BlackElo "1923"]
[Annotator "NA"]
[PlyCount "74"]
[EventDate "2019.07.16"]
[EventType "team-tourn"]
[EventCountry "TUR"]
[SourceTitle "playchess.com"]
[Source "ChessBase"]
[SourceQuality "1"]
[TimeControl "5400+30"]

1. Nf3 {[%emt 0:00:30]} d5 {[%emt 0:00:30]} 2. b3 {[%emt 0:00:30]} Bf5 {[%emt 0:00:00]} 3. Bb2 {[%emt 0:00:00]} c6 {[%emt 0:00:00]} 4. e3 {[%emt 0:01:00]} Nf6 {[%emt 0:00:00]} 5. Be2 {[%emt 0:00:00]} h6 {[%emt 0:01:00]} 6. O-O {[%emt 0:02:00]} Nbd7 {[%emt 0:00:00]} 7. d4 {[%emt 0:01:30]} e6 {[%emt 0:00:00]} 8. c4 {[%emt 0:01:30]} Bd6 {[%emt 0:00:30]} 9. Nbd2 {[%emt 0:02:30]} Ne4 {[%emt 0:00:30]} 10. Ne5 {[%emt 0:12:30]} Qc7 {[%emt 0:05:30]} 11. f4 {[%emt 0:01:30]} Ndf6 {[%emt 0:04:30]} 12. c5 {[%emt 0:03:30]} Be7 {[%emt 0:00:30]} 13. Nxe4 {[%emt 0:05:30]} Nxe4 {[%emt 0:02:30]} 14. Bg4 {[%emt 0:03:30]} Bf6 {[%emt 0:05:30]} 15. Nd3 {[%emt 0:15:30]} O-O {[%emt 0:01:30]} 16. Bxf5 {[%emt 0:06:30]} exf5 {[%emt 0:00:00]} 17. Nf2 {[%emt 0:00:00]} Rfe8 {[%emt 0:01:00]} 18. Qh5 {[%emt 0:03:00]} Qd7 {[%emt 0:02:30]} 19. Nxe4 {[%emt 0:00:30]} Rxe4 {[%emt 0:00:30]} 20. Rae1 {[%emt 0:00:30]} Rae8 {[%emt 0:00:30]} 21. Rf3 {[%emt 0:00:30]} Bxd4 {[%emt 0:02:30]} 22. Bxd4 {[%emt 0:02:30]} Rxd4 {[%emt 0:00:00]} 23. exd4 {[%emt 0:12:30]} Rxe1+ {[%emt 0:00:00]} 24. Rf1 {[%emt 0:00:30]} Qe6 {[%emt 0:00:30]} 25. Qf3 {[%emt 0:00:30]} Re3 {[%emt 0:04:30]} 26. Qd1 {[%emt 0:16:02]} Qe4 {[%emt 0:00:00]} 27. Kh1 {[%emt 0:05:17]} Rd3 {[%emt 0:01:00]} 28. Qe1 {[%emt 0:01:25]} Rxd4 {[%emt 0:00:30]} 29. Qa5 {[%emt 0:01:27]} Qxf4 {[%emt 0:05:30]} 30. Qd8+ {[%emt 0:01:05]} Kh7 {[%emt 0:00:30]} 31. Rg1 {[%emt 0:00:03]} Qf2 {[%emt 0:07:30]} 32. Qd7 {[%emt 0:01:04]} Rh4 {[%emt 0:01:30]} 33. h3 {[%emt 0:00:44]} d4 {[%emt 0:03:30]} 34. Qxb7 {[%emt 0:00:27]} d3 {[%emt 0:05:30]} 35. Qxc6 {[%emt 0:00:16]} Re4 {[%emt 0:01:30]} 36. Qd5 {[%emt 0:01:00]} d2 {[%emt 0:01:30]} 37. c6 {[%emt 0:00:39]} Re1 {[%emt 0:00:30]} 0-1